Cogmind - Beta 13 @@@ ROGUE MODE // 2024.03.23 @ 09:56:39 Player: Padwiz Result: Self-destructed Performance ------------- Evolutions (2) 1000 Regions Visited (4) 800 Robots Destroyed (19) 95 Value Destroyed (545) 545 Prototype IDs (5) 100 Alien Tech Used (0) 0 Bonus (0) 0 TOTAL SCORE: 2540 Bonus ------- None Cogmind --------- Core Integrity 386/550 Matter 237/300 Energy 153/250 System Corruption 0% Temperature Cool (26) Movement Walking (120) Location -8/Materials Parts ------- > --- POWER (1) -------- Ion Engine > --- PROPULSION (4) --- Aluminum Leg Aluminum Leg > --- UTILITY (4) ------ Improved Heat Sink Medium Storage Unit Visual Processing Unit Improved Targeting Computer > --- WEAPON (2) ------- Shotgun > --- INVENTORY (10) --- Faulty Heavy Ion Engine System Shield EM Shotgun Medium Laser Heavy Assault Rifle High-powered Shotgun Flak Cannon Peak State ------------ > --- POWER ------------ Ion Engine > --- PROPULSION ------- Aluminum Leg Aluminum Leg Aluminum Leg Aluminum Leg > --- UTILITY ---------- Improved Heat Sink Medium Storage Unit Visual Processing Unit Light Armor Plating > --- WEAPON ----------- Particle Gun Shotgun > --- INVENTORY -------- Ion Engine Heavy Ion Engine Improved Targeting Computer System Shield EM Shotgun Medium Laser Heavy Assault Rifle High-powered Shotgun Flak Cannon [Rating: 18] Favorites ----------- Power Ion Engine Engine Ion Engine Propulsion Aluminum Leg Treads Light Treads Leg Aluminum Leg Wheel Wheel Flight Unit Flight Unit Utility Small Storage Unit Device Sensor Array Storage Small Storage Unit Processor Visual Processing Unit Protection Light Armor Plating Weapon Medium Laser Energy Gun Medium Laser Ballistic Gun Assault Rifle Slashing Weapon Mining Claw Build | -11 -10 -10 -9 -8 ------- Run | Yrd Mat Min Mat Mat Slots Evolved 4 | . . . 2 2 Power . | . . . . . Propulsion 2 | . . . 1 1 Utility 2 | . . . 1 1 Weapon . | . . . . . Parts Attached 41 | 11 3 2 21 4 Power 5 | 1 1 . 2 1 Engine 5 | 1 1 . 2 1 Core . | . . . . . Reactor . | . . . . . Propulsion 16 | 7 . . 8 1 Treads 1 | 1 . . . . Leg 10 | 2 . . 7 1 Wheel 4 | 4 . . . . Hover . | . . . . . Flight 1 | . . . 1 . Utility 11 | 1 2 . 6 2 Device 4 | . 1 . 3 . Storage 4 | 1 1 . 2 . Processor 2 | . . . 1 1 Hackware . | . . . . . Protection 1 | . . . . 1 Artifact . | . . . . . Weapon 9 | 2 . 2 5 . Energy Gun 3 | 1 . . 2 . Energy Cannon . | . . . . . Ballistic Gun 5 | 1 . 2 2 . Ballistic Cannon . | . . . . . Launcher . | . . . . . Special Weapon . | . . . . . Impact Weapon . | . . . . . Slashing Weapon 1 | . . . 1 . Piercing Weapon . | . . . . . Special Melee Weapon . | . . . . . Unidentified Prototypes . | . . . . . Parts Lost 15 | . . . 10 5 Power 3 | . . . 2 1 Propulsion 6 | . . . 4 2 Utility 3 | . . . 2 1 Weapon 3 | . . . 2 1 Highest Loss Streak 10 | . . . 10 5 To Critical Strikes 1 | . . . 1 . Average Slot Usage (%) 96 | . 96 100 94 97 Engine 12 | . 14 14 11 9 Leg 12 | . . . 19 33 Wheel 13 | . 28 28 4 . Flight 2 | . . . 5 . Device 12 | . 11 14 13 9 Storage 12 | . 14 14 11 9 Processor 5 | . . . 8 10 Energy Gun 11 | . 14 14 10 9 Ballistic Gun 11 | . 14 14 9 9 Naked Turns . | . . . . . Heaviest Build 25 | 12 20 20 22 25 Greatest Support 40 | 20 20 20 30 40 Greatest Overweight (x) 2 | 2 . . 1 . Average Overweight (x) . | . . . . . Largest Inventory Capacity 10 | 8 10 10 10 10 Average Capacity 8 | 7 8 10 8 10 Most Carried 10 | 8 10 10 10 10 Average Carried 7 | 3 8 9 6 8 Final Capacity 10 | 8 10 10 10 10 Final Carried 10 | 6 10 10 10 7 Class Distribution -------------------- 65% | Mutant 34% | Scavenger-Mutant Dominant Class ---------------- Mutant | -10/Materials Mutant | -10/Mines Scavenger-Mutant | -9/Materials Scavenger-Mutant | -8/Materials Resources | -11 -10 -10 -9 -8 ----------- Run | Yrd Mat Min Mat Mat Matter Collected 596 | 240 141 10 205 . Remotely . | . . . . . Salvage Created 611 | . 141 . 345 125 Parts 43 | . 14 . 22 7 Haulers Intercepted . | . . . . . Recyclers Shooed 1 | . . . . 1 Parts Field Recycled . | . . . . . Retrieved Matter . | . . . . . Parts Self-Destructed . | . . . . . Prevented . | . . . . . Kills | -11 -10 -10 -9 -8 ------- Run | Yrd Mat Min Mat Mat Combat Hostiles Destroyed 18 | . 5 . 10 3 Melee 5 | . . . 5 . Guns 12 | . 4 . 5 3 Classes Destroyed 5 | . 3 . 1 1 Watcher 1 | . 1 . . . Swarmer 6 | . 3 . 3 . Grunt 9 | . 2 . 6 1 Duelist 1 | . . . . 1 Sentry 2 | . . . 1 1 Best Kill Streak 3 | . 2 . 3 3 Combat Bots Only 3 | . 2 . 3 3 Max Kills in Single Turn 2 | . 1 . 2 1 Gunslinging 1 | . . . 1 . Exploded . | . . . . . Melee 1 | . . . 1 . Uniques/NPCs Destroyed . | . . . . . Combat | -11 -10 -10 -9 -8 -------- Run | Yrd Mat Min Mat Mat Hostile Shots Fired 220 | . 34 . 118 68 Missed 55 | . 7 . 33 15 Damage Taken 1959 | . 246 . 901 812 Core 520 | . 111 . 245 164 Absorbed by Shields . | . . . . . Regen/Repaired (Parts) 64 | . . . 64 . Core Remaining (%) 64 | 100 . 55 38 . Volleys Fired 38 | . 17 . 10 11 Largest 2 | . 2 . 2 2 Hottest 88 | . 70 . 88 88 Shots Fired 73 | . 34 . 17 22 Gun 73 | . 34 . 17 22 Cannon . | . . . . . Launcher . | . . . . . Special . | . . . . . Kinetic 35 | . 17 . 7 11 Thermal 38 | . 17 . 10 11 Explosive . | . . . . . Electromagnetic . | . . . . . Robot Hit Streak 10 | . 10 . 3 5 Robot Miss Streak 4 | . 4 . 4 2 Penetration Max . | . . . . . Secondary Targets 2 | . 1 . 1 . Max Gunslinging Chain 1 | . 1 . 1 . Shots Hit Robots 66 | . 23 . 24 19 Core Hits 29 | . 6 . 14 9 Critical Kills . | . . . . . Critical Parts Destroyed . | . . . . . Critical Strikes 1 | . 1 . . . Burn 1 | . 1 . . . Melee Attacks 26 | . . . 26 . Impact . | . . . . . Slashing 26 | . . . 26 . Piercing . | . . . . . Sneak Attacks . | . . . . . Combat Hostiles . | . . . . . Follow-up Attacks . | . . . . . Damage Inflicted 1054 | . 305 . 461 288 Guns 725 | . 305 . 132 288 Cannons . | . . . . . Explosions . | . . . . . Melee 329 | . . . 329 . Ramming . | . . . . . Kinetic 388 | . 155 . 66 167 Thermal 337 | . 150 . 66 121 Explosive . | . . . . . Electromagnetic . | . . . . . Impact . | . . . . . Slashing 329 | . . . 329 . Piercing . | . . . . . Highest Corruption . | . . . . . Average Corruption . | . . . . . Corruption Purged . | . . . . . Corruption Blocked . | . . . . . Overload Shots . | . . . . . Overflow Damage 4 | . . . 4 . Projectiles . | . . . . . Explosions . | . . . . . Melee 4 | . . . 4 . Knockbacks . | . . . . . Impact . | . . . . . Kinetic . | . . . . . Secondary . | . . . . . Self-Inflicted Damage . | . . . . . Shots . | . . . . . Rammed . | . . . . . Targets Rammed . | . . . . . Kicked . | . . . . . Crushed . | . . . . . Highest Temperature 117 | . 117 . . 40 Average Temperature 39 | . 47 . . 17 Received Heat Transfer 780 | . 66 . 345 369 Siege Activations . | . . . . . Robots Corrupted . | . . . . . Combat Hostiles . | . . . . . Parts Fried . | . . . . . Impact Corruptions . | . . . . . Robots Melted 1 | . 1 . . . Combat Hostiles 1 | . 1 . . . Parts Melted . | . . . . . Heat Transferred 999 | . 518 . 185 296 Parts Sabotaged . | . . . . . Parts Stolen . | . . . . . Parts Stripped . | . . . . . Power Chain Reactions . | . . . . . Alert | -11 -10 -10 -9 -8 ------- Run | Yrd Mat Min Mat Mat Peak Influence 218 | . 218 84 154 152 Initial 84 | . . 84 32 45 Average 83 | . 153 84 59 72 Maximum Alert Level 1 | . 1 . . . Low Security (%) 90 | 100 59 100 100 100 Level 1 9 | . 40 . . . Level 2 . | . . . . . Level 3 . | . . . . . Level 4 . | . . . . . Level 5 . | . . . . . High Security . | . . . . . Max Security . | . . . . . Squads Dispatched 4 | . 2 . 2 . Investigation . | . . . . . Extermination . | . . . . . Reinforcement 4 | . 2 . 2 . Assault . | . . . . . Garrison . | . . . . . Intercept . | . . . . . Searches Triggered . | . . . . . Construction Impeded . | . . . . . Haulers Reinforced . | . . . . . Active Scanning Responses . | . . . . . Cargo Convoy Interrupts . | . . . . . Stealth | -11 -10 -10 -9 -8 --------- Run | Yrd Mat Min Mat Mat Distress Signals 3 | . 1 . . 2 Communications Jammed . | . . . . . Distress Signals . | . . . . . Times Spotted 42 | . 12 . 19 11 Peak Tracking Total 11 | . 5 . 6 11 Tactical Retreats 3 | . 1 . 2 . Traps | -11 -10 -10 -9 -8 ------- Run | Yrd Mat Min Mat Mat Traps Triggered . | . . . . . Indirectly . | . . . . . Trap Hack Attempts . | . . . . . Triggered . | . . . . . Disarmed . | . . . . . Reprogrammed . | . . . . . Reused . | . . . . . Traps Extracted . | . . . . . Installed . | . . . . . Triggered . | . . . . . Machines | -11 -10 -10 -9 -8 ---------- Run | Yrd Mat Min Mat Mat Machines Disabled . | . . . . . Max in Single Turn . | . . . . . Machines Repaired . | . . . . . Machines Dismantled . | . . . . . Machines Sabotaged . | . . . . . Overloaded Fab Kills . | . . . . . Hacking | -11 -10 -10 -9 -8 --------- Run | Yrd Mat Min Mat Mat Machines Accessed 12 | . 4 . 7 1 Terminals 9 | . 4 . 5 . Fabricators . | . . . . . Repair Stations 1 | . . . 1 . Recycling Units . | . . . . . Scanalyzers 2 | . . . 1 1 Garrison Access . | . . . . . Total Hacks 35 | . 11 . 23 1 Successful 19 | . 7 . 11 1 Failed 16 | . 4 . 12 . Catastrophic 3 | . . . 3 . Database Lockouts . | . . . . . Manual 1 | . 1 . . . Terminals 31 | . 11 . 20 . Fabricators . | . . . . . Repair Stations 2 | . . . 2 . Recycling Units . | . . . . . Scanalyzers 2 | . . . 1 1 Garrison Access . | . . . . . Terminal Hacks 16 | . 7 . 9 . Record 2 | . 1 . 1 . Prototype ID Bank 2 | . 1 . 1 . Branch Access Points 1 | . 1 . . . Emergency Access Points 1 | . . . 1 . Alert Level 2 | . . . 2 . Locate Traps 3 | . 1 . 2 . Dispatch Records 1 | . 1 . . . Surveillance Status 1 | . 1 . . . Hauler Manifests 2 | . 1 . 1 . Registered Components 1 | . . . 1 . Fabricator Hacks . | . . . . . Repair Station Hacks 2 | . . . 2 . Scan Component 1 | . . . 1 . Repair 1 | . . . 1 . Recycling Unit Hacks . | . . . . . Scanalyzer 1 | . . . . 1 Insert Component 1 | . . . . 1 Garrison Access Hacks . | . . . . . Unauthorized Hacks . | . . . . . Terminals . | . . . . . Fabricators . | . . . . . Repair Stations . | . . . . . Recycling Units . | . . . . . Scanalyzers . | . . . . . Garrison Access . | . . . . . Data Cores Recovered . | . . . . . Used . | . . . . . Hacking Detections 7 | . 2 . 5 . Full Trace Events . | . . . . . Feedback Events . | . . . . . Feedback Blocked . | . . . . . Robot Schematics Acquired . | . . . . . Robots Built . | . . . . . Authchips . | . . . . . Time . | . . . . . Total Robot Build Rating . | . . . . . Part Schematics Acquired . | . . . . . Parts Built . | . . . . . Authchips . | . . . . . Time . | . . . . . Total Part Build Rating . | . . . . . Parts Repaired 1 | . . . 1 . Time 26 | . . . 26 . Parts Recycled . | . . . . . Recycled Matter . | . . . . . Retrieved Matter . | . . . . . Retrieved Components . | . . . . . Parts Scanalyzed . | . . . . . Part Schematics Acquired . | . . . . . Parts Damaged . | . . . . . Bothacking | -11 -10 -10 -9 -8 ------------ Run | Yrd Mat Min Mat Mat Used RIF Installer . | . . . . . Robots Hacked . | . . . . . Non-combat . | . . . . . Combat . | . . . . . Robot Hacks Applied . | . . . . . Relay Couplers Released . | . . . . . Fabnet Peak Effective % . | . . . . . Robots Rewired . | . . . . . Allies Hacked . | . . . . . Hacks Repelled . | . . . . . Allies | -11 -10 -10 -9 -8 -------- Run | Yrd Mat Min Mat Mat Total Allies . | . . . . . Largest Group . | . . . . . Highest-Rated Group . | . . . . . Highest-Rated Ally . | . . . . . Total Orders . | . . . . . Ally Attacks . | . . . . . Total Damage . | . . . . . Kills . | . . . . . Allies Corrupted . | . . . . . Allies Melted . | . . . . . Intel | -11 -10 -10 -9 -8 ------- Run | Yrd Mat Min Mat Mat Robot Analysis Total . | . . . . . Derelict Logs Recovered 1 | . . 1 . . Drone Launches . | . . . . . Drone Recoveries . | . . . . . Exploration | -11 -10 -10 -9 -8 ------------- Run | Yrd Mat Min Mat Mat Turns Passed 1578 | 68 375 209 792 134 Spaces Moved 1288 | 47 379 249 539 74 Core 8 | 8 . . . . Treads . | . . . . . Legs 449 | 3 . . 372 74 Wheels 831 | 36 379 249 167 . Hover . | . . . . . Flight . | . . . . . Fastest Speed 50 | 50 80 80 80 120 Average Speed 94 | 83 80 80 108 120 Slowest Speed 190 | 150 80 80 190 120 Overloaded Moves . | . . . . . Propulsion Burnouts . | . . . . . Robots Hopped . | . . . . . Cave-ins Triggered . | . . . . . Exploration Rate (%) 38 | 3 64 71 45 7 Regions Visited 4 Branch Regions 1 Pre-discovered Areas 1 | . . 1 . . Known Exits Taken 1 | . 1 . . . Unknown Exits Taken 3 | 1 . 1 1 . Scrap Searched 1 | . . 1 . . Spaces Dug . | . . . . . Terrain Destroyed . | . . . . . Melee . | . . . . . Projectile . | . . . . . AOE . | . . . . . Terrain Rammed . | . . . . . Walls Destroyed . | . . . . . Machines Disabled . | . . . . . Actions | -11 -10 -10 -9 -8 --------- Run | Yrd Mat Min Mat Mat Total 1528 | 74 419 259 677 99 Wait 78 | 6 9 3 59 1 Move 1284 | 46 378 248 538 74 Hop . | . . . . . Pick Up 35 | 6 7 2 15 5 Fast Attach 11 | 6 1 2 2 . Attach 25 | 5 . . 16 4 Detach 7 | 5 . . 2 . Swap 5 | . 2 . 3 . Drop 19 | . 5 4 6 4 Fire 38 | . 17 . 10 11 Melee 26 | . . . 26 . Ram . | . . . . . Kick . | . . . . . Crush . | . . . . . Escape Stasis . | . . . . . Rewire . | . . . . . Trap . | . . . . . Miscellaneous . | . . . . . Route ------- -11/Scrapyard -10/Materials (discovered 2 exits: *Mat / *Min) -10/Mines -9/Materials (discovered 2 exits: *Mat / [*Min]) -8/Materials History --------- Turn | Location | Event 26 | -11/Scrapyard | Discovered new exit (range 16) 69 | -11/Scrapyard | Entered Materials 86 | -10/Materials | Identified exit to Mines 316 | -10/Materials | Build established: Mutant 401 | -10/Materials | Discovered new exit (range 15) 444 | -10/Materials | Entered Mines 451 | -10/Mines | Learned Materials emergency access door positions 466 | -10/Mines | Met a Derelict bent on vengeance 649 | -10/Mines | Learned location of Storage (-8) 650 | -10/Mines | Discovered new exit (range 4) 653 | -10/Mines | Entered Materials 653 | -9/Materials | Evolved 2 slots: Propulsion x1, Utility x1 893 | -9/Materials | Core integrity fell below 50% 941 | -9/Materials | Lost 10 parts (2p4n2u2w) 1143 | -9/Materials | Discovered new exit (range 7) 1216 | -9/Materials | Repaired Aluminum Leg 1330 | -9/Materials | Build established: Scavenger-Mutant 1379 | -9/Materials | Discovered new exit (range 18) 1445 | -9/Materials | Entered another Materials area 1445 | -8/Materials | Evolved 2 slots: Propulsion x1, Utility x1 1579 | -8/Materials | Self-destructed Last Messages --------------- Acquired System Shield. K-01 Serf collects debris. W-25 Informer sends out distress signal. R-06 Scavenger collects Flight Unit. W-25 Informer sends out distress signal. K-01 Serf collects debris. K-01 Serf cleans the Recycling Unit. Y-45 Defender destroyed. Critical hit (Burn: +37). R-06 Scavenger collects Lgt. Treads. L-31 Rogue destroyed. Lgt. Armor Plating destroyed. K-01 Serf collects debris. Aluminum Leg destroyed. K-01 Serf collects debris. K-01 Serf destroyed. Ion Engine destroyed. Aluminum Leg destroyed. G-47 Trooper destroyed. Particle Gun destroyed. Map ----- +----------------------------------------------------+ | | | | | | | | | ?????????????????????????????????????????????????? | | ?????????????????????????????????????????????????? | | ?????????????????????????????????????????????????? | | ?????????????????????????????????????????????????? | | ?????????????????????????????????????????????????? | | ???????????????????????????#####?????????????????? | | ????????????????????######## #?????????????????? | | ????????????????????# # #?????????????????? | | ????????????????????#"S # #?????????????????? | | ????????????????????#""" + ############+###### | | ????????????????????# "" # | | ????????????????????# # #???? | | ????????????????????# # #???? | | ????????????????????######## ###+####### #???? | | ???????????????????????????# # #??????#???? | | ???????????????????????????# # #??????????? | | ????????????????????######## # / #??????????? | | ????????????????????# #// #??????????? | | ??????????????####### #/ #??????????? | | ?????? [ # #??????????? | | ????????# ## #######+################??????????? | | ????????????????# Y Y%@= !#???????????????????? | | ????????????????#"" """Y=% #???????????????????? | | ????????????????#"Y """!=][%*#???????????????????? | | ????????????????#""Y"""gg]/ !#???????????????????? | | ?????????????? + r [%#??????????????????? | | ?????????????# #####+##########??????????????????? | | ???????????????????# ????????????????????????????? | | ???????????????????#?????????????????????????????? | | ?????????????????????????????????????????????????? | | ?????????????????????????????????????????????????? | | ?????????????????????????????????????????????????? | | ?????????????????????????????????????????????????? | | ?????????????????????????????????????????????????? | | ?????????????????????????????????????????????????? | | ?????????????????????????????????????????????????? | | ?????????????????????????????????????????????????? | | ?????????????????????????????????????????????????? | | ?????????????????????????????????????????????????? | | ?????????????????????????????????????????????????? | | ?????????????????????????????????????????????????? | | ?????????????????????????????????????????????????? | | ?????????????????????????????????????????????????? | | ?????????????????????????????????????????????????? | | ?????????????????????????????????????????????????? | | ?????????????????????????????????????????????????? | +----------------------------------------------------+ Best States ------------- Heat Dissipation 45 Energy Generation 10 Energy Capacity 250 Matter Stores 300 Matter Capacity 300 Sight Range 18 Robot Scan Range 14 Terrain Scan Density 10 ECM Strength 1 Armor Coverage 150 Evasion (%) 55 Targeting Accuracy 6 Item Schematics ----------------- None Robot Schematics ------------------ None Fabricated ------------ Nothing Alien Tech Used ----------------- None Achievements -------------- It's Just You Safety First Shopping List Challenges ------------ None Game ------ Seed GatlingSniperLog Manual? 0 Play Time 00:37:18 Cumulative 4.2 hours Start 2024.03.23 @ 09:21:04 End 2024.03.23 @ 09:56:39 Sessions 1 Manual Loads 0 Difficulty Rogue Special Mode None Game No. 3 Rogue 3 Adventurer 0 Explorer 0 Win Type - Total 0 Types 0/0/0/0/0/0/0/0/0 Lore% 2 Gallery% 5 Achievement% 5 Wizard Run 0 Options --------- Layout 1 ASCII 1 Keyboard 1 Movement Numpad Keybinds 0 Fullscreen 2 Font 24/Smallcaps Map View 50x35 Zoom Use 0% Tactical HUD 0 Map Filters NONE Filters NONE Steam 1 RUN: 4fa9b547-8379-4c18-837b-c605ae8339c2